bitfinex-derivatives/quotes_BTCF0:USTF0_20250711
["timestamp","ask_amount","ask_price","bid_price","bid_amount"]
[1752258888186,0.46742,117600.0,117590.0,2.2556493]
[1752258888686,0.46742,117600.0,117590.0,2.2566493]
[1752258889595,0.6374317,117600.0,117590.0,2.2566493]
[1752258891095,0.46742,117600.0,117590.0,2.2566493]
[1752258891491,0.6374317,117600.0,117590.0,2.2566493]
[1752258891996,0.6374317,117600.0,117590.0,1.8550861]
[1752258892297,0.6374317,117600.0,117590.0,2.2566493]
[1752258892890,0.69864723,117600.0,117590.0,2.2566493]
[1752258893894,0.6374317,117600.0,117590.0,2.2566493]
[1752258894599,0.6374317,117600.0,117590.0,2.2543093]
[1752258895600,0.6374317,117600.0,117590.0,1.8527461]
[1752258896000,0.6374317,117600.0,117590.0,2.2543093]
[1752258897698,0.71380111,117600.0,117590.0,2.2543093]
[1752258899900,0.71380111,117600.0,117590.0,2.2548893]
[1752258900504,0.71380111,117600.0,117590.0,1.8533261]
[1752258900704,0.71380111,117600.0,117590.0,2.2548893]
[1752258901002,0.71380111,117600.0,117590.0,1.8533261]
[1752258901205,0.71380111,117600.0,117590.0,2.2548893]
[1752258902699,0.71380111,117600.0,117590.0,1.8533261]
[1752258902906,0.71380111,117600.0,117590.0,2.2548893]
[1752258903104,0.6374317,117600.0,117590.0,2.2548893]
[1752258905905,1.0389949,117600.0,117590.0,1.68272]
[1752258906106,1.11536431,117600.0,117590.0,1.68272]
[1752258906505,1.11536431,117600.0,117590.0,1.8527462]
[1752258907506,1.11536431,117600.0,117590.0,1.3527462]
[1752258908814,0.71380111,117600.0,117590.0,1.3527462]
[1752258912416,0.74408859,117600.0,117590.0,1.3527462]
[1752258912917,0.8205708,117600.0,117590.0,1.3527462]
[1752258913215,0.71391391,117600.0,117590.0,1.3527462]
[1752258916518,0.6374317,117600.0,117590.0,1.3527462]
[1752258917115,0.6374317,117600.0,117590.0,1.18272]
[1752258917321,1.0389949,117600.0,117590.0,1.18272]
[1752258917520,1.14565179,117600.0,117590.0,1.18272]
[1752258918014,1.73505179,117600.0,117590.0,1.18272]
[1752258918214,0.2024951,117570.0,117560.0,0.00170119]
[1752258918412,2.00203388,117570.0,117560.0,0.00170119]
[1752258919116,2.10869077,117570.0,117560.0,0.00170119]
[1752258919311,2.18503764,117570.0,117560.0,0.00170119]
[1752258919517,1.67681755,117570.0,117560.0,0.00170119]
[1752258919713,2.07838075,117570.0,117560.0,0.00370119]
[1752258920215,2.0783213,117570.0,117560.0,0.00370119]
[1752258920421,2.00203388,117570.0,117560.0,0.00370119]
[1752258920918,2.00203388,117570.0,117560.0,0.00770119]
[1752258921119,2.01005163,117570.0,117560.0,0.00770119]
[1752258921320,2.08629326,117570.0,117560.0,0.00770119]
[1752258921718,2.01005163,117570.0,117560.0,0.00470119]
[1752258921916,1.41267388,117570.0,117560.0,0.00470119]
[1752258922119,1.10174199,117570.0,117560.0,0.57633399]
[1752258922319,1.69114199,117570.0,117560.0,0.57633399]
[1752258922622,1.64644261,117570.0,117560.0,0.17377079]
[1752258922821,1.64744261,117570.0,117560.0,0.17177079]
[1752258924123,1.64644261,117570.0,117560.0,0.17177079]
[1752258924322,2.04700581,117570.0,117560.0,0.00170119]
[1752258924622,2.04800581,117570.0,117560.0,0.00170119]
[1752258926223,1.64644261,117570.0,117560.0,0.00170119]
[1752258926424,2.04800581,117570.0,117560.0,0.00170119]
[1752258927223,1.45860581,117570.0,117560.0,0.17177079]
[1752258927421,2.04804581,117570.0,117560.0,0.17177079]
[1752258927815,2.04804581,117570.0,117560.0,0.00170119]
[1752258929522,1.05704261,117570.0,117560.0,0.17177069]
[1752258929722,2.04804581,117570.0,117560.0,0.17177069]
[1752258932930,1.9870883,117570.0,117560.0,0.17177069]
[1752258934830,1.3976483,117570.0,117560.0,0.17177069]
[1752258935035,1.9870883,117570.0,117560.0,0.17177069]
[1752258935934,1.3976483,117570.0,117560.0,0.17177069]
[1752258936139,1.9870883,117570.0,117560.0,0.17177069]
[1752258936342,1.5855251,117570.0,117560.0,0.57333389]
[1752258936542,1.5855251,117570.0,117560.0,0.17177069]
[1752258936744,1.9870883,117570.0,117560.0,0.17177069]
[1752258936938,1.5855251,117570.0,117560.0,0.17177069]
[1752258937139,1.9870883,117570.0,117560.0,0.17177069]
[1752258937542,1.5855251,117570.0,117560.0,0.17177069]
[1752258938242,1.64648261,117570.0,117560.0,0.17177069]
[1752258938442,2.04804581,117570.0,117560.0,0.17177069]
[1752258938643,1.5855251,117570.0,117560.0,0.17177069]
[1752258939251,1.64648261,117570.0,117560.0,0.17177069]
[1752258939445,1.64648261,117570.0,117560.0,0.00170119]
[1752258939843,1.64648261,117570.0,117560.0,0.17177069]
[1752258940043,2.04804581,117570.0,117560.0,0.17177069]
[1752258943855,2.04804581,117570.0,117560.0,0.00170119]
[1752258944053,2.04804581,117570.0,117560.0,0.17177079]
[1752258946149,1.9870883,117570.0,117560.0,0.17177079]
[1752258947350,2.06328351,117570.0,117560.0,0.17177079]
[1752258948050,2.04826264,117570.0,117560.0,0.00170119]
[1752258948255,1.9870883,117570.0,117560.0,0.00170119]
[1752258948449,1.9870883,117570.0,117560.0,0.17177069]
[1752258948853,1.3976483,117570.0,117560.0,0.17177069]
[1752258949054,1.9869683,117570.0,117560.0,0.17177069]
[1752258950152,1.5854051,117570.0,117560.0,0.17177069]
[1752258951358,1.66160031,117570.0,117560.0,0.17177069]
[1752258952355,1.69206199,117570.0,117560.0,0.17177069]
[1752258952553,2.09362519,117570.0,117560.0,0.17177069]
[1752258952958,2.17015724,117570.0,117560.0,0.17177069]
[1752258953154,2.06350035,117570.0,117560.0,0.17177069]
[1752258954163,2.06350035,117570.0,117560.0,0.00170119]
[1752258954359,2.06350035,117570.0,117560.0,0.17177079]
[1752258956363,1.9869683,117570.0,117560.0,0.17177079]
[1752258956763,2.06350481,117570.0,117560.0,0.17177079]
[1752258957263,2.09362519,117570.0,117560.0,0.17177079]
[1752258957860,2.09354519,117570.0,117560.0,0.17177079]
[1752258960264,2.09354519,117570.0,117560.0,0.00170119]
[1752258960762,0.21108689,117570.0,117560.0,0.57333389]
[1752258961062,0.07199,117570.0,117560.0,1.56405709]
[1752258961255,0.18084104,117570.0,117560.0,1.56405709]
[1752258961461,0.18084104,117570.0,117560.0,1.16249389]
[1752258962067,0.1033,117570.0,117560.0,1.16249389]
[1752258962270,0.33456627,117570.0,117560.0,1.16249389]
[1752258962562,0.33456627,117570.0,117560.0,1.66249389]
[1752258962763,0.16451117,117570.0,117560.0,1.66449389]
[1752258963073,0.70874819,117580.0,117570.0,0.1700551]
[1752258963074,0.49378252,117580.0,117570.0,0.1700551]
[1752258963367,0.53959252,117580.0,117570.0,0.5716183]
[1752258963562,0.17879252,117580.0,117570.0,0.5716183]
[1752258964264,0.11758135,117580.0,117570.0,0.5716183]
[1752258964961,0.11758135,117580.0,117570.0,1.0716183]
[1752258965165,0.11758135,117580.0,117570.0,1.0726183]
[1752258965362,0.17879252,117580.0,117570.0,1.0726183]
[1752258965661,0.17879252,117580.0,117570.0,1.0736183]
[1752258965662,0.11758135,117580.0,117570.0,1.0736183]
[1752258965862,0.11758135,117580.0,117570.0,1.4344183]
[1752258966057,0.11758135,117580.0,117570.0,1.0736183]
[1752258966467,0.08527135,117580.0,117570.0,1.4344183]
[1752258966662,0.01633135,117580.0,117570.0,1.6045223]
[1752258966860,0.01633135,117580.0,117570.0,1.2437223]
[1752258967068,0.01633135,117580.0,117570.0,1.6045223]
[1752258967465,0.16246117,117590.0,117580.0,0.1700406]
[1752258967770,0.46205,117590.0,117580.0,1.1607238]
[1752258967968,0.10125,117590.0,117580.0,1.1607238]
[1752258968169,0.2712762,117590.0,117580.0,0.7591606]
[1752258968370,0.10125,117590.0,117580.0,0.7591606]
[1752258968663,0.46205,117590.0,117580.0,0.7591606]
[1752258968966,0.46205,117590.0,117580.0,1.1617238]
[1752258969171,0.46205,117590.0,117580.0,0.7601606]
[1752258969365,0.46205,117590.0,117580.0,1.2601606]
[1752258969771,0.6320761,117590.0,117580.0,1.2601606]
[1752258969971,1.0336393,117590.0,117580.0,1.2601606]
[1752258970866,1.0336393,117590.0,117580.0,0.7601606]
[1752258972671,1.0336393,117590.0,117580.0,0.7611606]
[1752258975771,0.6320761,117590.0,117580.0,0.7611606]
[1752258978276,1.0336393,117590.0,117580.0,0.7611606]
[1752258984871,0.46205,117590.0,117580.0,0.7611606]
[1752258985072,0.2712762,117590.0,117580.0,0.7611606]
[1752258985278,0.6320762,117590.0,117580.0,0.7611606]
[1752258985775,1.0336394,117590.0,117580.0,0.7611606]
[1752258989278,1.09485057,117590.0,117580.0,0.7611606]
[1752258990778,1.0336394,117590.0,117580.0,0.7611606]
[1752258992181,1.09485057,117590.0,117580.0,0.7611606]
[1752258993179,0.69328737,117590.0,117580.0,0.7611606]
[1752258997285,1.09485057,117590.0,117580.0,0.7611606]
[1752259002392,1.0336394,117590.0,117580.0,0.7611606]
[1752259005094,1.11018044,117590.0,117580.0,0.7611606]
[1752259007992,1.0336394,117590.0,117580.0,0.7611606]
[1752259008393,1.0336394,117590.0,117580.0,0.59112]
[1752259008584,1.0336394,117590.0,117580.0,0.7611606]
[1752259009185,1.11018044,117590.0,117580.0,0.59112]
[1752259009384,1.11018044,117590.0,117580.0,0.7611606]
[1752259011494,1.0336394,117590.0,117580.0,0.7611606]
[1752259011695,0.6320762,117590.0,117580.0,0.7611606]
[1752259011890,0.6320762,117590.0,117580.0,1.1627238]
[1752259012099,0.70861724,117590.0,117580.0,1.1627238]
[1752259012300,0.69331216,117590.0,117580.0,1.1627238]
[1752259012696,0.69331216,117590.0,117580.0,0.7611606]
[1752259014998,0.33251216,117590.0,117580.0,0.7611606]
[1752259015299,0.69331216,117590.0,117580.0,0.7611606]
[1752259015687,0.2712762,117590.0,117580.0,1.1627238]
[1752259015893,0.69331325,117590.0,117580.0,1.1627238]
[1752259016394,0.6320762,117590.0,117580.0,1.1627238]
[1752259016799,0.69331425,117590.0,117580.0,1.1627238]
[1752259017101,0.6320762,117590.0,117580.0,1.1627238]
[1752259017707,0.70861724,117590.0,117580.0,0.7611606]
[1752259017999,0.69331476,117590.0,117580.0,0.7611606]
[1752259019595,0.33251476,117590.0,117580.0,0.7611606]
[1752259019902,0.69331476,117590.0,117580.0,0.7611606]
[1752259022598,1.09487796,117590.0,117580.0,0.7611606]
[1752259023196,0.69331476,117590.0,117580.0,0.7611606]
[1752259024196,0.33251476,117590.0,117580.0,0.7611606]
[1752259024596,0.13017856,117590.0,117580.0,1.1627238]
[1752259024802,0.08530856,117590.0,117580.0,1.5235238]
[1752259024996,0.13497856,117590.0,117580.0,1.6627238]
[1752259025406,0.30500466,117590.0,117580.0,1.2611606]
[1752259025609,0.30500466,117590.0,117580.0,1.6627238]
[1752259026403,0.33692466,117590.0,117580.0,1.6627238]
[1752259028012,0.2756861,117590.0,117580.0,1.6627238]
[1752259028310,0.2756861,117590.0,117580.0,1.2611606]
[1752259028914,0.33692466,117590.0,117580.0,1.2611606]
[1752259029507,1.09928786,117590.0,117580.0,1.2611606]
[1752259030006,0.73848786,117590.0,117580.0,1.2611606]
[1752259033208,1.09928786,117590.0,117580.0,1.2611606]
[1752259033707,1.06736786,117590.0,117580.0,1.2611606]
[1752259036212,1.06736786,117590.0,117580.0,0.7611606]
[1752259037309,1.0061293,117590.0,117580.0,0.7611606]
[1752259038015,1.0673484,117590.0,117580.0,0.7611606]
[1752259039110,1.0061293,117590.0,117580.0,0.002]
[1752259039309,1.67099034,117590.0,117580.0,0.002]
[1752259040315,1.08267034,117590.0,117580.0,0.1720406]
[1752259040706,0.774235,117590.0,117580.0,0.5736038]
[1752259041019,0.69769396,117590.0,117580.0,0.5736038]
[1752259041215,0.69769396,117590.0,117580.0,0.5726038]
[1752259041515,0.69769396,117590.0,117580.0,0.5716038]
[1752259042016,0.69769396,117590.0,117580.0,0.5736038]
[1752259042216,0.69769396,117590.0,117580.0,0.1720406]
[1752259044215,1.09925716,117590.0,117580.0,0.1720406]
[1752259044816,0.69769396,117590.0,117580.0,0.1720406]
[1752259045320,0.6364861,117590.0,117580.0,0.1720406]
[1752259045722,0.71302714,117590.0,117580.0,0.1720406]
[1752259048021,0.69767364,117590.0,117580.0,0.1720406]
[1752259050122,1.09923684,117590.0,117580.0,0.1720406]
[1752259050722,0.69767364,117590.0,117580.0,0.1720406]
[1752259051322,0.69767364,117590.0,117580.0,0.5736038]
[1752259052123,0.33687364,117590.0,117580.0,0.5736038]
[1752259052325,0.6364861,117590.0,117580.0,0.5736038]
[1752259052524,0.71302714,117590.0,117580.0,0.5736038]
[1752259052725,0.69768127,117590.0,117580.0,0.5736038]
[1752259053121,0.69768127,117590.0,117580.0,0.1720406]
[1752259053620,0.69768127,117590.0,117580.0,0.5736038]
[1752259053621,0.16685517,117590.0,117580.0,0.5736038]
[1752259054715,0.16685517,117590.0,117580.0,1.0736038]
[1752259057119,0.33688137,117590.0,117580.0,0.6720406]
[1752259057322,0.69768137,117590.0,117580.0,0.6720406]
[1752259058526,1.09924457,117590.0,117580.0,0.6720406]
[1752259059525,1.0380494,117590.0,117580.0,0.6720406]
[1752259059728,1.11459044,117590.0,117580.0,0.6720406]
[1752259060023,1.11459044,117590.0,117580.0,0.502]
[1752259060227,1.0380494,117590.0,117580.0,0.502]
[1752259060427,1.0380494,117590.0,117580.0,0.002]
[1752259060825,0.2246606,117580.0,117570.0,1.47682]
[1752259061128,0.2246606,117580.0,117570.0,1.47662]
[1752259061129,1.11104571,117580.0,117570.0,1.47662]
[1752259061324,1.11104571,117580.0,117570.0,1.6466751]
[1752259062028,1.11104571,117580.0,117570.0,1.6486751]
[1752259062326,1.0345538,117580.0,117570.0,1.6506751]
[1752259062521,1.09573683,117580.0,117570.0,1.6506751]
[1752259063630,1.09573683,117580.0,117570.0,1.3507751]
[1752259064523,1.09573683,117580.0,117570.0,1.3487751]
[1752259064724,1.09573683,117580.0,117570.0,1.3467751]
[1752259064924,1.09573683,117580.0,117570.0,1.17672]
[1752259065430,1.09573683,117580.0,117570.0,1.3467751]
[1752259067832,1.0345538,117580.0,117570.0,1.3467751]
[1752259068135,1.09572083,117580.0,117570.0,1.3467751]
[1752259068427,1.0345538,117580.0,117570.0,1.17672]
[1752259068731,1.0345538,117580.0,117570.0,1.3467751]
[1752259069326,1.09570072,117580.0,117570.0,1.3467751]
[1752259069526,1.0345538,117580.0,117570.0,1.3467751]
[1752259070327,1.09569403,117580.0,117570.0,1.3467751]
[1752259070532,0.69413083,117580.0,117570.0,1.3467751]
[1752259071031,1.09569403,117580.0,117570.0,1.3467751]
[1752259071828,0.73489403,117580.0,117570.0,1.3467751]
[1752259072028,1.09569403,117580.0,117570.0,1.3467751]
[1752259080135,1.0345538,117580.0,117570.0,1.3467751]
[1752259081742,1.0345538,117580.0,117570.0,1.17672]
[1752259081945,1.0345538,117580.0,117570.0,1.3467751]
[1752259082144,1.09569403,117580.0,117570.0,1.3467751]
[1752259082538,1.09569403,117580.0,117570.0,1.17672]
[1752259082950,1.11104571,117580.0,117570.0,1.17672]
[1752259083137,1.11104571,117580.0,117570.0,1.3467751]
[1752259086644,1.0345538,117580.0,117570.0,1.3467751]
[1752259087146,1.11104571,117580.0,117570.0,1.3467751]
[1752259087848,1.0345538,117580.0,117570.0,1.3467751]
[1752259088646,1.0345538,117580.0,117570.0,1.17672]
[1752259089845,0.2747351,117570.0,117560.0,1.39277799]
[1752259090048,1.53104823,117570.0,117560.0,1.17730119]
[1752259090351,2.04231632,117570.0,117560.0,0.00170119]
[1752259090550,2.14897321,117570.0,117560.0,0.00170119]
[1752259091146,2.14897321,117570.0,117560.0,0.00370119]
[1752259091951,1.74741001,117570.0,117560.0,0.00170119]
[1752259092251,1.74841001,117570.0,117560.0,0.00170119]
[1752259093351,1.64175312,117570.0,117560.0,0.00170119]
[1752259093651,1.65001951,117570.0,117560.0,0.00170119]
[1752259094548,1.72630474,117570.0,117560.0,0.00170119]
[1752259094744,0.1700695,117560.0,117550.0,1.17576]
[1752259095055,0.1700695,117560.0,117540.0,1.19375819]
[1752259095056,0.274764,117550.0,117540.0,1.19375819]
[1752259095252,1.0371272,117550.0,117540.0,1.36365669]
[1752259096153,1.0371272,117550.0,117540.0,1.36565669]
[1752259096648,1.0371272,117550.0,117540.0,1.3476985]
[1752259096952,1.05329162,117550.0,117540.0,1.3476985]
[1752259097654,1.05329162,117550.0,117540.0,1.3496985]
[1752259097852,1.12957685,117550.0,117540.0,1.3496985]
[1752259098749,1.05329162,117550.0,117540.0,1.3496985]
[1752259098950,1.11426255,117550.0,117540.0,1.3496985]
[1752259099556,0.71269935,117550.0,117540.0,1.3496985]
[1752259099752,1.11426255,117550.0,117540.0,1.3496985]
[1752259104460,1.05329162,117550.0,117540.0,1.3496985]
[1752259105861,1.02163162,117550.0,117540.0,1.3496985]
[1752259106059,0.44998442,117550.0,117540.0,1.7546517]
[1752259106357,0.01616442,117550.0,117540.0,2.6154517]
[1752259106562,0.37696442,117550.0,117540.0,2.2546517]
[1752259106762,0.54704842,117550.0,117540.0,2.2546517]
[1752259106963,0.25704842,117550.0,117540.0,2.2546517]
[1752259107663,0.08696442,117550.0,117540.0,2.2546517]
[1752259108462,0.25704842,117550.0,117540.0,2.2546517]
[1752259110964,0.08696442,117550.0,117540.0,2.2546517]
[1752259111161,0.25704842,117550.0,117540.0,2.2546517]
[1752259114570,0.01616442,117550.0,117540.0,2.6154517]
[1752259115368,0.01616442,117550.0,117540.0,2.63956968]
[1752259115563,0.04070442,117550.0,117540.0,2.63956968]
[1752259116173,0.08696442,117550.0,117540.0,2.63956968]
[1752259119468,0.01616442,117550.0,117540.0,2.63956968]
[1752259121270,0.27298952,117570.0,117560.0,0.1700695]
[1752259121271,0.44949482,117570.0,117560.0,0.1700695]
[1752259121472,0.08869482,117570.0,117560.0,2.1073927]
[1752259121675,0.14966575,117570.0,117560.0,2.1073927]
[1752259121974,0.08869482,117570.0,117560.0,2.1073927]
[1752259122269,0.08869482,117570.0,117560.0,2.2465927]
[1752259122270,0.25874992,117570.0,117560.0,2.2465927]
[1752259122476,0.08869482,117570.0,117560.0,2.6073927]
[1752259122672,0.25974992,117570.0,117560.0,2.6073927]
[1752259123874,0.25974992,117570.0,117560.0,2.6083927]
[1752259124176,0.25874992,117570.0,117560.0,2.6083927]
[1752259124977,0.65039992,117570.0,117560.0,2.2475927]
[1752259125767,0.65039992,117570.0,117560.0,1.8460295]
[1752259126074,1.05196312,117570.0,117560.0,1.8458295]
[1752259126678,0.65039992,117570.0,117560.0,1.8458295]
[1752259126878,0.65039992,117570.0,117560.0,1.3458295]
[1752259128273,0.65039992,117570.0,117560.0,1.7473927]
[1752259128678,0.65039992,117570.0,117560.0,1.3458295]
[1752259128880,0.65039992,117570.0,117560.0,1.7473927]
[1752259131572,0.65039992,117570.0,117560.0,1.3458295]
[1752259132179,1.05196312,117570.0,117560.0,1.17576]
[1752259132483,1.11293405,117570.0,117560.0,1.17576]
[1752259132779,1.05196312,117570.0,117560.0,1.17576]
[1752259133079,1.05196312,117570.0,117560.0,1.3458295]
[1752259133983,1.11293405,117570.0,117560.0,1.3458295]
[1752259135082,0.71137085,117570.0,117560.0,1.3458295]
[1752259137379,1.11293405,117570.0,117560.0,1.3458295]
[1752259137580,0.71137085,117570.0,117560.0,1.3458295]
[1752259140285,0.71137085,117570.0,117560.0,1.7473927]
[1752259140983,0.54131575,117570.0,117560.0,1.7473927]
[1752259141176,0.07886575,117570.0,117560.0,2.1081927]
[1752259141383,0.002,117570.0,117560.0,2.52776816]
[1752259142586,0.002,117570.0,117560.0,3.44788816]
[1752259143276,0.002,117570.0,117560.0,3.19688816]
[1752259143476,0.002,117570.0,117560.0,3.19988816]
[1752259143980,0.002,117570.0,117560.0,3.20088816]
[1752259144177,0.002,117570.0,117560.0,3.20188816]
[1752259144379,0.002,117570.0,117560.0,3.19888816]
[1752259144580,0.002,117570.0,117560.0,3.20188816]
[1752259150694,0.20624616,117590.0,117580.0,0.1700433]
[1752259150895,0.12996093,117590.0,117580.0,1.7456865]
[1752259152094,0.29998963,117590.0,117580.0,1.35227685]
[1752259152296,0.29998963,117590.0,117580.0,2.25384005]
[1752259153294,0.12996093,117590.0,117580.0,2.25384005]
[1752259153684,0.29999023,117590.0,117580.0,2.25384005]
[1752259154092,0.33096023,117590.0,117580.0,2.25384005]
[1752259155190,0.33096023,117590.0,117580.0,1.85227685]
[1752259155394,1.09332343,117590.0,117580.0,1.85211685]
[1752259155694,1.09332343,117590.0,117580.0,1.843964]
[1752259155695,0.6307893,117590.0,117580.0,1.843964]
[1752259155896,1.0323525,117590.0,117580.0,1.843964]
[1752259156097,1.0323525,117590.0,117580.0,1.67392]
[1752259156399,1.0323525,117590.0,117580.0,1.843964]
[1752259156699,1.0323525,117590.0,117580.0,1.67392]
[1752259156890,1.10863773,117590.0,117580.0,1.67392]
[1752259157092,1.10863773,117590.0,117580.0,1.17392]
[1752259157498,1.10863773,117590.0,117580.0,1.343964]
[1752259158497,1.10863773,117590.0,117580.0,1.17392]
[1752259158804,1.12477967,117590.0,117580.0,1.17392]
[1752259159205,1.04849444,117590.0,117580.0,1.17392]
[1752259159805,0.223174,117580.0,117570.0,1.4739]
[1752259160007,1.1113228,117580.0,117570.0,1.6437585]
[1752259160907,1.1113228,117580.0,117570.0,1.6447585]
[1752259161303,1.1113228,117580.0,117570.0,1.1748]
[1752259161704,1.1113228,117580.0,117570.0,1.3448584]
[1752259161905,1.1113228,117580.0,117570.0,1.3468584]
[1752259162507,1.11959273,117580.0,117570.0,1.3438584]
[1752259162805,1.28969673,117580.0,117570.0,1.1738]
[1752259163012,0.2727385,117570.0,117560.0,1.34573409]
[1752259163310,1.09608093,117570.0,117560.0,1.17546119]
[1752259163506,1.09608093,117570.0,117560.0,1.34553409]
[1752259163810,1.09608093,117570.0,117560.0,1.17546119]
[1752259164010,1.1113373,117570.0,117560.0,1.17546119]
[1752259164211,1.0351017,117570.0,117560.0,1.17546119]
[1752259165009,1.0351017,117570.0,117560.0,1.34553409]
[1752259165712,1.0351017,117570.0,117560.0,1.17546119]
[1752259165912,1.0351017,117570.0,117560.0,1.34553409]
[1752259166114,1.1113373,117570.0,117560.0,1.17546119]
[1752259166810,1.1113373,117570.0,117560.0,1.34553409]
[1752259168609,0.3489741,117570.0,117560.0,1.74709729]
[1752259168811,0.33367513,117570.0,117560.0,1.74709729]
[1752259169014,0.2727385,117570.0,117560.0,1.34553409]
[1752259169209,0.33367513,117570.0,117560.0,2.24709729]
[1752259169608,0.2727385,117570.0,117560.0,2.24709729]
[1752259170412,0.2727385,117570.0,117560.0,1.84553409]
[1752259171415,0.33367513,117570.0,117560.0,1.84553409]
[1752259175322,0.2727385,117570.0,117560.0,2.24709729]
[1752259178725,0.2727385,117570.0,117560.0,1.84553409]
[1752259179023,0.2727385,117570.0,117560.0,2.24709729]
[1752259180425,0.33367513,117570.0,117560.0,2.24709729]
[1752259180624,0.2727385,117570.0,117560.0,2.24709729]
[1752259180826,0.33367513,117570.0,117560.0,2.24709729]
[1752259181025,0.33367513,117570.0,117560.0,1.84553409]
[1752259181221,1.09603833,117570.0,117560.0,1.67546119]
[1752259181527,1.09603833,117570.0,117560.0,1.84553479]
[1752259181528,0.69447513,117570.0,117560.0,1.84553479]
[1752259181723,1.09603833,117570.0,117560.0,1.84553479]
[1752259181924,1.09603833,117570.0,117560.0,1.67546119]
[1752259182224,1.09603833,117570.0,117560.0,1.84553479]
[1752259182525,1.1113373,117570.0,117560.0,1.84553479]
[1752259183224,1.1113373,117570.0,117560.0,1.34553479]
[1752259185125,0.7097741,117570.0,117560.0,1.34553479]
[1752259186529,1.1113373,117570.0,117560.0,1.34553479]
[1752259187528,1.0351017,117570.0,117560.0,1.34553479]
[1752259188029,0.70985052,117570.0,117560.0,1.34553479]
[1752259190330,0.70985052,117570.0,117560.0,1.74709799]
[1752259190628,0.70985052,117570.0,117560.0,1.34553479]
[1752259191935,0.72615752,117570.0,117560.0,1.34553479]
[1752259192134,1.12772072,117570.0,117560.0,1.34553479]
[1752259192333,1.1277493,117570.0,117560.0,1.34553479]
[1752259193233,0.7261861,117570.0,117560.0,1.74709799]
[1752259194136,0.3653861,117570.0,117560.0,1.74709799]
[1752259194433,0.7261861,117570.0,117560.0,1.74709799]
[1752259195134,0.78726137,117570.0,117560.0,1.74709799]
[1752259195333,0.71092077,117570.0,117560.0,1.74709799]
[1752259195533,0.6498455,117570.0,117560.0,1.74709799]
[1752259196234,0.71092692,117570.0,117560.0,1.74709799]
[1752259196634,0.6498455,117570.0,117560.0,1.74709799]
[1752259198338,0.71092692,117570.0,117560.0,1.74709799]
[1752259201241,0.7261861,117570.0,117560.0,1.74709799]
[1752259202742,0.3653861,117570.0,117560.0,1.74709799]
[1752259209453,0.2890455,117570.0,117560.0,1.74709799]
[1752259211949,0.3653861,117570.0,117560.0,1.74709799]
[1752259218549,0.3653861,117570.0,117560.0,1.34553479]
[1752259218756,0.7669493,117570.0,117560.0,1.34553479]
[1752259219054,1.1277493,117570.0,117560.0,1.34553479]
[1752259224257,1.1277493,117570.0,117560.0,1.17546119]
[1752259224473,1.1277493,117570.0,117560.0,1.34553479]
[1752259229073,0.7261861,117570.0,117560.0,1.34553479]
[1752259229376,1.1277493,117570.0,117560.0,1.34553479]
[1752259231979,0.3653861,117570.0,117560.0,1.74709799]
[1752259232182,0.3653861,117570.0,117560.0,2.10789799]
[1752259232385,0.3347561,117570.0,117560.0,2.10789799]
[1752259232875,0.31951554,117570.0,117560.0,2.10789799]
[1752259233277,0.35115554,117570.0,117560.0,1.70633479]
[1752259233580,0.35115554,117570.0,117560.0,2.10789799]
[1752259234083,0.3663961,117570.0,117560.0,2.10789799]
[1752259234783,0.3663961,117570.0,117560.0,1.74709799]
[1752259234983,0.2900555,117570.0,117560.0,1.74709799]
[1752259236090,1.0524187,117570.0,117560.0,1.34553479]
[1752259236383,1.15907559,117570.0,117560.0,1.34553479]
[1752259238087,0.6508555,117570.0,117560.0,1.34553479]
[1752259239786,0.75751239,117570.0,117560.0,1.34553479]
[1752259242390,0.72721787,117570.0,117560.0,1.34553479]
[1752259243187,0.72721847,117570.0,117560.0,1.74709799]
[1752259244285,0.72721847,117570.0,117560.0,1.34553479]
[1752259244487,0.72721847,117570.0,117560.0,1.74709799]
[1752259244883,0.78830449,117570.0,117560.0,1.74709799]
[1752259245084,0.71194212,117570.0,117560.0,1.74709799]
[1752259245781,0.71194212,117570.0,117560.0,1.34553479]
[1752259246781,1.11350532,117570.0,117560.0,1.34553479]
[1752259248189,0.71194212,117570.0,117560.0,1.34553479]
[1752259250094,0.71194212,117570.0,117560.0,1.74709799]
[1752259250493,0.71193164,117570.0,117560.0,1.74709799]
[1752259251289,0.6508561,117570.0,117560.0,1.74709799]
[1752259251490,0.72721847,117570.0,117560.0,1.34553479]
[1752259251692,1.12878167,117570.0,117560.0,1.34553479]
[1752259252193,0.72721847,117570.0,117560.0,1.34553479]
[1752259254594,0.6508561,117570.0,117560.0,1.34553479]
[1752259254894,0.6508561,117570.0,117560.0,1.74709799]
[1752259255594,0.71192512,117570.0,117560.0,1.74709799]
[1752259256391,0.68028512,117570.0,117560.0,1.74709799]
[1752259256995,0.31948512,117570.0,117560.0,1.74709799]
[1752259258103,0.14942602,117570.0,117560.0,1.74709799]
[1752259259096,0.14942602,117570.0,117560.0,2.10789799]
[1752259259397,0.14942602,117570.0,117560.0,1.74709799]
[1752259259694,0.14942602,117570.0,117560.0,2.10789799]
[1752259259895,0.14942602,117570.0,117560.0,1.74709799]
[1752259261697,0.31948502,117570.0,117560.0,1.74709799]
[1752259263900,0.258416,117570.0,117560.0,1.74709799]
[1752259264105,0.69557837,117570.0,117560.0,1.74709799]
[1752259266904,0.69557837,117570.0,117560.0,1.94736967]
[1752259267402,0.33477837,117570.0,117560.0,1.94736967]
[1752259268105,0.16471937,117570.0,117560.0,1.94736967]
[1752259268304,0.33477847,117570.0,117560.0,1.94736967]
[1752259270901,0.36535847,117570.0,117560.0,1.94736967]
[1752259272408,0.19529937,117570.0,117560.0,1.94736967]
[1752259272706,0.6334891,117570.0,117560.0,1.94736967]
[1752259272908,0.6334891,117570.0,117560.0,1.96501237]
[1752259273405,0.10263,117570.0,117560.0,1.96501237]
[1752259273608,0.17895856,117570.0,117560.0,1.96501237]
[1752259274307,0.10263,117570.0,117560.0,1.96501237]
[1752259275504,0.50853856,117580.0,117570.0,0.1700591]
[1752259275705,0.43221,117580.0,117570.0,0.77189398]
[1752259276008,0.17806689,117580.0,117570.0,0.77189398]
[1752259276207,0.17806689,117580.0,117570.0,1.13269398]
[1752259276409,0.25438635,117580.0,117570.0,0.83177654]
[1752259276601,0.14972946,117580.0,117570.0,1.13269398]
[1752259276802,0.14972946,117580.0,117570.0,0.93197224]
[1752259277509,0.31977406,117580.0,117570.0,0.93197224]
[1752259277710,0.14972946,117580.0,117570.0,0.93197224]
[1752259278905,0.31977406,117580.0,117570.0,0.93197224]
[1752259281311,0.35039406,117580.0,117570.0,0.93197224]
[1752259282504,0.16506639,117580.0,117570.0,0.93197224]
[1752259282705,0.33511099,117580.0,117570.0,0.93197224]
[1752259283504,0.06303639,117580.0,117570.0,0.93197224]
[1752259283709,0.002,117580.0,117570.0,0.93197224]
[1752259292214,0.07373,117580.0,117570.0,0.93197224]
[1752259294111,0.002,117580.0,117570.0,0.93197224]
[1752259295314,0.07373,117580.0,117570.0,0.93197224]
[1752259301313,0.13475621,117580.0,117570.0,0.93197224]
[1752259304821,0.13475621,117580.0,117570.0,0.83169795]